lending/lending_fUSD_20251016
["ID","MTS","AMOUNT","RATE_DAILY","PERIOD"]
[391560827,1760655039307,-166.26853416,0.00030765,15]
[391560829,1760655039317,-192.52302376,0.00030765,2]
[391560831,1760655039328,-16306.85960192,0.00030765,2]
[391560833,1760655039338,-1199.28,0.00030766,2]
[391560835,1760655039347,-3519.1658041,0.00030768,2]
[391560837,1760655039358,-1823.3272988,0.00030768,2]
[391560839,1760655039367,-1523.8594238,0.00030768,2]
[391560841,1760655039377,-2290.9402263,0.00030768,2]
[391560843,1760655039387,-500.0,0.00030769,120]
[391560846,1760655039396,-500.0,0.00030769,120]
[391560848,1760655039406,-500.0,0.00030769,2]
[391560850,1760655039415,-500.0,0.00030769,2]
[391560851,1760655039426,-500.0,0.00030769,2]
[391560854,1760655039436,-500.0,0.00030769,2]
[391560858,1760655039447,-500.0,0.00030769,2]
[391560859,1760655039456,-500.0,0.00030769,2]
[391560862,1760655039465,-505.37444322,0.00030769,2]
[391560864,1760655039475,-450.0,0.0003077,2]
[391560865,1760655039484,-1427.0,0.0003077,20]
[391560867,1760655039494,-22103.3486457,0.00030772,3]
[391560870,1760655039504,-247.37924554,0.00030772,2]
[391560872,1760655039513,-400.0,0.00030779,2]
[391560874,1760655039523,-188.69,0.0003078,30]
[391560876,1760655039531,-1000.0,0.00030782,11]
[391560877,1760655039541,-1000.0,0.00030782,11]
[391560879,1760655039551,-1000.0,0.00030782,11]
[391560882,1760655039562,-1000.0,0.00030782,11]
[391560883,1760655039571,-1000.0,0.00030782,11]
[391560885,1760655039580,-1120.78671936,0.00030782,11]
[391560887,1760655039589,-1000.0,0.00030782,11]
[391560889,1760655039599,-1000.0,0.00030782,11]
[391560891,1760655039608,-1000.0,0.00030782,11]
[391560894,1760655039618,-1000.0,0.00030782,11]
[391560896,1760655039627,-1000.0,0.00030782,11]
[391560897,1760655039637,-1000.0,0.00030782,11]
[391560899,1760655039647,-1000.0,0.00030782,11]
[391560901,1760655039656,-1000.0,0.00030782,11]
[391560903,1760655039665,-22103.3486457,0.00030782,3]
[391560904,1760655039675,-151.0,0.00030782,2]
[391560906,1760655039684,-150.0,0.00030782,30]
[391560908,1760655039693,-150.0,0.0003079,120]
[391560910,1760655039702,-22103.3486457,0.0003079,3]
[391560912,1760655039712,-150.0,0.00030797,120]
[391560914,1760655039722,-150.0,0.00030799,120]
[391560915,1760655039732,-1000.0,0.00030799,2]
[391560917,1760655039743,-250.0,0.000308,30]
[391560919,1760655039752,-151.0,0.000308,5]
[391560921,1760655039762,-1476.32,0.000308,120]
[391560923,1760655039772,-500.0,0.000308,120]
[391560925,1760655039782,-646.77,0.000308,30]
[391560927,1760655039791,-1670.83,0.000308,2]
[391560928,1760655039801,-20835.96,0.000308,2]
[391560930,1760655039810,-16265.88,0.000308,7]
[391560932,1760655039820,-588.27,0.00030801,120]
[391560934,1760655039829,-1476.32,0.00030802,120]
[391560936,1760655039838,-1476.32,0.00030802,120]
[391560937,1760655039847,-1476.32,0.00030802,120]
[391560939,1760655039857,-1476.32,0.00030802,120]
[391560941,1760655039866,-1476.32,0.00030802,120]
[391560943,1760655039876,-1476.32,0.00030802,120]
[391560945,1760655039888,-1476.32,0.00030802,120]
[391560947,1760655039897,-1476.32,0.00030802,120]
[391560948,1760655039906,-1476.32,0.00030802,120]
[391560950,1760655039915,-1476.32,0.00030802,120]
[391560952,1760655039925,-1476.32,0.00030802,120]
[391560954,1760655039936,-1476.32,0.00030802,120]
[391560956,1760655039945,-1476.32,0.00030802,120]
[391560958,1760655039956,-1476.44315027,0.00030802,120]
[391560960,1760655039966,-500.0,0.00030802,120]
[391560962,1760655039975,-500.0,0.00030802,120]
[391560963,1760655039984,-500.0,0.00030802,120]
[391560965,1760655039994,-500.0,0.00030802,120]
[391560967,1760655040004,-500.0,0.00030802,120]
[391560968,1760655040013,-500.0,0.00030802,120]
[391560969,1760655040023,-500.0,0.00030802,120]
[391560970,1760655040033,-500.0,0.00030802,120]
[391560971,1760655040043,-413.87201724,0.00030802,120]
[391560972,1760655040053,-150.0,0.00030805,120]
[391560973,1760655040062,-150.0,0.00030806,120]
[391560974,1760655040072,-22103.3486457,0.00030824,3]
[391560975,1760655040081,-150.0,0.00030834,120]
[391560976,1760655040090,-2232.0,0.00030834,2]
[391560977,1760655040099,-836.67557333,0.00030834,2]
[391560978,1760655040108,-168.0,0.00030838,2]
[391560980,1760655040118,-2565.63401561,0.0003084,2]
[391560982,1760655040127,-500.0,0.00030844,120]
[391560984,1760655040138,-500.0,0.00030844,120]
[391560986,1760655040148,-1947.0,0.00030845,30]
[391560987,1760655040158,-243136.835103,0.00030845,3]
[391560989,1760655040167,-206112.729711,0.00030845,3]
[391560991,1760655040176,-1000.0,0.0003085,30]
[391560993,1760655040185,-7584.30911934,0.00030853,2]
[391560995,1760655040194,-500.0,0.00030853,7]
[391560997,1760655040203,-500.0,0.00030853,7]
[391560998,1760655040212,-500.0,0.00030853,7]
[391561000,1760655040222,-621.88669567,0.00030853,30]
[391561002,1760655040231,-200.0,0.00030853,120]
[391561004,1760655040241,-1091.0,0.00030854,5]
[391561006,1760655040250,-22103.3486457,0.00030855,3]
[391561007,1760655040261,-29444.675673,0.00030855,3]
[391561009,1760655040271,-154723.44052,0.00030855,3]
[391561011,1760655040281,-220835.067547,0.00030855,3]
[391561013,1760655040290,-200.0,0.00030856,120]
[391561015,1760655040300,-571.77471075,0.00030856,120]
[391561016,1760655040309,-151.0,0.00030865,30]
[391561018,1760655040323,-151.0,0.00030865,30]
[391561020,1760655040333,-151.0,0.00030865,30]
[391561022,1760655040343,-151.0,0.00030865,30]
[391561025,1760655040353,-151.0,0.00030865,30]
[391561026,1760655040362,-151.0,0.00030865,30]
[391561028,1760655040372,-151.0,0.00030865,30]
[391561030,1760655040381,-151.0,0.00030865,30]
[391561032,1760655040391,-151.0,0.00030865,30]
[391561034,1760655040400,-151.0,0.00030865,30]
[391561036,1760655040410,-151.0,0.00030865,30]
[391561037,1760655040419,-500.0,0.00030865,120]
[391561038,1760655040432,-500.0,0.00030865,120]
[391561039,1760655040441,-500.0,0.00030865,120]
[391561040,1760655040450,-500.0,0.00030865,120]
[391561041,1760655040461,-500.0,0.00030865,120]
[391561042,1760655040471,-500.0,0.00030865,120]
[391561043,1760655040480,-500.0,0.00030865,120]
[391561044,1760655040490,-500.0,0.00030865,120]
[391561045,1760655040499,-500.0,0.00030865,120]
[391561046,1760655040508,-500.0,0.00030865,120]
[391561047,1760655040517,-500.0,0.00030865,120]
[391561048,1760655040526,-500.0,0.00030865,120]
[391561049,1760655040535,-500.0,0.00030865,120]
[391561050,1760655040545,-500.0,0.00030865,120]
[391561051,1760655040554,-500.0,0.00030865,120]
[391561052,1760655040563,-500.0,0.00030865,120]
[391561053,1760655040572,-500.0,0.00030865,120]
[391561054,1760655040582,-500.0,0.00030865,120]
[391561055,1760655040591,-500.0,0.00030865,120]
[391561056,1760655040600,-500.0,0.00030865,120]
[391561057,1760655040610,-261.94,0.00030865,120]
[391561058,1760655040619,-500.0,0.00030865,120]
[391561059,1760655040628,-500.0,0.00030865,120]
[391561060,1760655040640,-500.0,0.00030865,120]
[391561061,1760655040650,-500.0,0.00030865,120]
[391561062,1760655040659,-500.0,0.00030865,120]
[391561063,1760655040669,-151.0,0.00030865,30]
[391561064,1760655040678,-151.0,0.00030865,30]
[391561065,1760655040687,-151.0,0.00030865,30]
[391561066,1760655040697,-151.0,0.00030865,30]
[391561067,1760655040706,-270.46308,0.00030865,30]
[391561068,1760655040716,-151.0,0.00030865,30]
[391561069,1760655040725,-151.0,0.00030865,30]
[391561070,1760655040735,-151.00000061,0.00030865,30]
[391561071,1760655040744,-198.519304,0.00030865,30]
[391561072,1760655040754,-151.0,0.00030865,30]
[391561073,1760655040764,-151.0,0.00030865,30]
[391561074,1760655040774,-151.0,0.00030865,30]
[391561075,1760655040783,-152.038837,0.00030865,30]
[391561076,1760655040792,-151.0,0.00030865,30]
[391561077,1760655040802,-154.75471,0.00030865,30]
[391561078,1760655040811,-154.198005,0.00030865,30]
[391561079,1760655040820,-151.0,0.00030865,30]
[391561080,1760655040830,-151.0,0.00030865,30]
[391561081,1760655040839,-151.0,0.00030865,30]
[391561082,1760655040849,-151.0,0.00030865,30]
[391561083,1760655040859,-151.0,0.00030865,30]
[391561084,1760655040868,-236.600756,0.00030865,30]
[391561085,1760655040878,-151.0,0.00030865,30]
[391561086,1760655040889,-151.0,0.00030865,30]
[391561087,1760655040899,-151.0,0.00030865,30]
[391561088,1760655040908,-151.0,0.00030865,30]
[391561089,1760655040918,-151.0,0.00030865,30]
[391561090,1760655040927,-151.0,0.00030865,30]
[391561091,1760655040937,-151.0,0.00030865,30]
[391561092,1760655040946,-151.0,0.00030865,30]
[391561093,1760655040955,-151.0,0.00030865,30]
[391561094,1760655040965,-151.0,0.00030865,30]
[391561095,1760655040974,-151.0,0.00030865,30]
[391561096,1760655040983,-151.0,0.00030865,30]
[391561097,1760655040992,-151.0,0.00030865,30]
[391561098,1760655041002,-151.0,0.00030865,30]
[391561099,1760655041011,-151.0,0.00030865,30]
[391561100,1760655041020,-212.15373,0.00030865,30]
[391561101,1760655041030,-151.0,0.00030865,15]
[391561102,1760655041039,-151.0,0.00030865,30]
[391561103,1760655041050,-151.0,0.00030865,30]
[391561104,1760655041060,-151.0,0.00030865,30]
[391561105,1760655041070,-151.0,0.00030865,30]
[391561106,1760655041080,-201.928733,0.00030865,30]
[391561107,1760655041090,-151.0,0.00030865,30]
[391561108,1760655041100,-200.0,0.00030865,120]
[391561109,1760655041113,-151.0,0.00030865,30]
[391561110,1760655041123,-151.0,0.00030865,30]
[391561111,1760655041133,-151.0,0.00030865,30]
[391561112,1760655041143,-151.0,0.00030865,30]
[391561113,1760655041152,-151.0,0.00030865,30]
[391561114,1760655041162,-253.991648,0.00030865,30]
[391561115,1760655041171,-151.0,0.00030865,30]
[391561116,1760655041181,-151.0,0.00030865,30]
[391561117,1760655041191,-151.0,0.00030865,30]
[391561118,1760655041201,-151.0,0.00030865,30]
[391561119,1760655041210,-151.0,0.00030865,30]
[391561120,1760655041220,-300.84455,0.00030865,30]
[391561121,1760655041231,-151.0,0.00030865,30]
[391561122,1760655041242,-151.0,0.00030865,30]
[391561123,1760655041253,-151.0,0.00030865,30]
[391561124,1760655041266,-151.0,0.00030865,30]
[391561125,1760655041276,-151.0,0.00030865,30]
[391561126,1760655041284,-151.0,0.00030865,30]
[391561127,1760655041294,-152.60014,0.00030865,30]
[391561128,1760655041305,-151.0,0.00030865,30]
[391561129,1760655041315,-151.0,0.00030865,30]
[391561130,1760655041327,-151.0,0.00030865,30]
[391561131,1760655041339,-151.0,0.00030865,30]
[391561132,1760655041351,-151.0,0.00030865,30]
[391561133,1760655041363,-151.0,0.00030865,30]
[391561134,1760655041375,-203.390075,0.00030865,30]
[391561135,1760655041388,-151.0,0.00030865,30]
[391561136,1760655041399,-151.0,0.00030865,30]
[391561137,1760655041409,-151.0,0.00030865,30]
[391561138,1760655041420,-151.0,0.00030865,30]
[391561139,1760655041430,-151.0,0.00030865,30]
[391561140,1760655041441,-255.705516,0.00030865,30]
[391561141,1760655041452,-151.0,0.00030865,30]
[391561142,1760655041463,-151.0,0.00030865,30]
[391561143,1760655041475,-151.0,0.00030865,30]
[391561144,1760655041485,-151.0,0.00030865,30]
[391561145,1760655041496,-151.0,0.00030865,30]
[391561146,1760655041508,-151.0,0.00030865,30]
[391561147,1760655041519,-151.0,0.00030865,30]
[391561148,1760655041533,-151.0,0.00030865,30]
[391561149,1760655041543,-279.52368,0.00030865,30]
[391561150,1760655041554,-151.0,0.00030865,30]
[391561151,1760655041567,-151.0,0.00030865,30]
[391561152,1760655041578,-151.0,0.00030865,30]
[391561153,1760655041589,-151.0,0.00030865,30]
[391561154,1760655041600,-151.0,0.00030865,30]
[391561155,1760655041611,-151.0,0.00030865,30]
[391561156,1760655041622,-151.0,0.00030865,30]
[391561157,1760655041634,-151.0,0.00030865,30]
[391561158,1760655041644,-151.0,0.00030865,30]
[391561159,1760655041654,-151.0,0.00030865,30]
[391561160,1760655041666,-173.47073604,0.00030865,30]
[391561161,1760655041678,-151.0,0.00030865,30]
[391561162,1760655041689,-151.0,0.00030865,30]
[391561163,1760655041700,-151.0,0.00030865,30]
[391561164,1760655041712,-151.0,0.00030865,30]
[391561165,1760655041723,-151.0,0.00030865,30]
[391561166,1760655041734,-151.0,0.00030865,30]
[391561167,1760655041747,-151.0,0.00030865,30]
[391561168,1760655041758,-151.0,0.00030865,30]
[391561169,1760655041769,-151.0,0.00030865,30]
[391561170,1760655041780,-151.0,0.00030865,30]
[391561171,1760655041792,-151.0,0.00030865,30]
[391561172,1760655041804,-151.0,0.00030865,30]
[391561173,1760655041815,-151.0,0.00030865,30]
[391561174,1760655041827,-151.0,0.00030865,30]
[391561175,1760655041838,-151.0,0.00030865,30]
[391561176,1760655041849,-272.739701,0.00030865,30]
[391561177,1760655041861,-152.984544,0.00030865,30]
[391561178,1760655041873,-151.0,0.00030865,30]
[391561179,1760655041884,-151.0,0.00030865,30]
[391561180,1760655041895,-151.0,0.00030865,30]
[391561181,1760655041907,-151.0,0.00030865,30]
[391561182,1760655041918,-151.0,0.00030865,30]
[391561183,1760655041928,-151.0,0.00030865,30]
[391561184,1760655041939,-151.0,0.00030865,30]
[391561185,1760655041950,-151.0,0.00030865,30]
[391561186,1760655041961,-151.0,0.00030865,30]
[391561187,1760655041971,-169.875312,0.00030865,30]
[391561188,1760655041983,-151.0,0.00030865,30]
[391561189,1760655041994,-151.0,0.00030865,30]
[391561190,1760655042005,-151.0,0.00030865,30]
[391561191,1760655042016,-151.0,0.00030865,30]
[391561192,1760655042029,-240.113655,0.00030865,30]
[391561193,1760655042039,-492444.39645475,0.00030865,9]
[391561194,1760655042050,-6564.60113634,0.00030865,2]
[391561195,1760655042061,-1329935.51598832,0.00030865,2]
[391561196,1760655042071,-2740.76243408,0.00030865,2]
[391561197,1760655042085,-153.39473758,0.00030865,2]
[391561198,1760655042096,-1700.55308138,0.00030865,2]
[391561199,1760655042107,-252.57714043,0.00030865,2]
[391561200,1760655042118,-500.0,0.00030865,2]
[391561201,1760655042129,-1003.94138687,0.00030865,2]
[391561202,1760655042140,-1278.73819351,0.00030865,2]
[391561203,1760655042151,-246.93340549,0.00030865,2]
[391561205,1760655042161,-163.97906369,0.00030865,2]
[391561207,1760655042172,-1055.94223637,0.00030865,2]
[391561208,1760655042183,-552.79019161,0.00030865,2]
[391561209,1760655042199,-1329.66193204,0.00030865,2]
[391561210,1760655042211,-2226.27590321,0.00030865,2]
[391561211,1760655042223,-757.80400718,0.00030865,2]
[391561212,1760655042234,-1945.83209327,0.00030865,2]
[391561213,1760655042244,-186.57207581,0.00030865,2]
[391561214,1760655042254,-643.0,0.00030865,2]
[391561215,1760655042268,-983.83441344,0.00030865,2]
[391561216,1760655042279,-580.86663284,0.00030865,2]
[391561217,1760655042290,-1860.43278621,0.00030865,2]
[391561218,1760655042301,-3285.50354734,0.00030865,2]
[391561219,1760655042312,-177.80279389,0.00030865,2]
[391561220,1760655042323,-334.21886527,0.00030865,2]
[391561221,1760655042337,-550.0,0.00030865,2]
[391561222,1760655042349,-1022.51875137,0.00030865,2]
[391561223,1760655042360,-25187.93353523,0.00030865,5]
[391561224,1760655042370,-2000.0,0.00030865,15]
[391561225,1760655042380,-1605.54808629,0.00030865,10]
[391561227,1760655042392,-1057.47913276,0.00030865,15]
[391561230,1760655042403,-1004.53613624,0.00030865,20]
[391561232,1760655042413,-1280.22976025,0.00030865,15]
[391561234,1760655042423,-1000.0,0.00030865,10]
[391561236,1760655042433,-1058.48309676,0.00030865,7]
[391561238,1760655042444,-1809.97587572,0.00030865,10]
[391561240,1760655042454,-1033.92340682,0.00030865,7]
[391561242,1760655042465,-407397.28721987,0.00030865,2]
[391561243,1760655042476,-1370.0,0.00030865,15]
[391561244,1760655042487,-500.0,0.00030865,5]
[391561245,1760655042498,-500.0,0.00030865,3]
[391561246,1760655042509,-1109.97911634,0.00030865,15]
[391561247,1760655042520,-742.429999,0.00030865,2]
[391561248,1760655042530,-8101.68914114,0.00030865,7]
[391561249,1760655042540,-3791.53152307,0.00030865,7]
[391561250,1760655042551,-2314.09722133,0.00030865,10]
[391561251,1760655042561,-2340.79058433,0.00030865,10]
[391561252,1760655042571,-16206.83327392,0.00030865,7]
[391561253,1760655042582,-25948.40883123,0.00030865,7]
[391561254,1760655042592,-5007.93846681,0.00030865,10]
[391561255,1760655042602,-2366.05404563,0.00030865,7]
[391561256,1760655042612,-5405.71548563,0.00030865,10]
[391561257,1760655042622,-6049.94012862,0.00030865,5]
[391561258,1760655042633,-2365.96985389,0.00030865,14]
[391561259,1760655042643,-169.34572743,0.00030865,2]
[391561260,1760655042654,-500.0,0.00030865,2]
[391561261,1760655042664,-500.0,0.00030865,2]
[391561262,1760655042675,-500.0,0.00030865,2]
[391561263,1760655042686,-500.0,0.00030865,2]
[391561264,1760655042696,-500.0,0.00030865,2]
[391561265,1760655042707,-681.83,0.00030865,2]
[391561266,1760655042717,-681.83,0.00030865,2]
[391561267,1760655042727,-500.0,0.00030865,2]
[391561268,1760655042737,-681.83,0.00030865,2]
[391561269,1760655042747,-500.0,0.00030865,2]
[391561270,1760655042758,-681.83,0.00030865,2]
[391561271,1760655042768,-500.0,0.00030865,2]
[391561272,1760655042778,-500.0,0.00030865,2]
[391561273,1760655042789,-681.83,0.00030865,2]
[391561275,1760655042799,-500.0,0.00030865,2]
[391561276,1760655042809,-681.83,0.00030865,2]
[391561277,1760655042819,-500.0,0.00030865,2]
[391561278,1760655042829,-681.96,0.00030865,2]
[391561279,1760655042848,-500.0,0.00030865,2]
[391561280,1760655042858,-591.11,0.00030865,2]
[391561281,1760655042869,-177.02439531,0.00030865,2]
[391561282,1760655042879,-500.58167204,0.00030865,2]
[391561283,1760655042891,-500.0,0.00030865,2]
[391561285,1760655042902,-500.0,0.00030865,2]
[391561286,1760655042913,-500.0,0.00030865,2]
[391561287,1760655042924,-500.0,0.00030865,2]
[391561290,1760655042934,-500.0,0.00030865,2]
[391561291,1760655042945,-500.0,0.00030865,2]
[391561293,1760655042955,-500.0,0.00030865,2]
[391561295,1760655042966,-500.0,0.00030865,2]
[391561296,1760655042976,-500.0,0.00030865,2]
[391561297,1760655042987,-500.0,0.00030865,2]
[391561298,1760655042997,-500.0,0.00030865,2]
[391561299,1760655043008,-500.0,0.00030865,2]
[391561300,1760655043019,-500.0,0.00030865,2]
[391561301,1760655043029,-500.0,0.00030865,2]
[391561302,1760655043040,-502.60088601,0.00030865,2]
[391561303,1760655043050,-500.0,0.00030865,2]
[391561304,1760655043061,-500.0,0.00030865,2]
[391561305,1760655043071,-500.0,0.00030865,2]
[391561306,1760655043081,-253.43,0.00030865,2]
[391561307,1760655043092,-1734.08131052,0.00030865,2]
[391561308,1760655043102,-24709.87424801,0.00030865,2]
[391561309,1760655043960,-230.51149368,0.00030865,15]
[391561310,1760655043995,-477.00527094,0.00030865,7]
[391561311,1760655044005,-28437.9827764,0.00030865,2]
[391561312,1760655044014,-680.0,0.00030865,10]
[391561313,1760655044023,-200.0,0.00030865,2]
[391561314,1760655044032,-500.0,0.00030865,2]
[391561315,1760655044041,-500.0,0.00030865,2]
[391561316,1760655044050,-500.0,0.00030865,2]
[391561317,1760655044059,-500.0,0.00030865,2]
[391561318,1760655044069,-278.90402981,0.00030865,2]
[391561319,1760655044078,-500.0,0.00030865,10]
[391561320,1760655044087,-500.0,0.00030865,10]
[391561321,1760655044096,-500.0,0.00030865,10]
[391561322,1760655044105,-500.0,0.00030865,10]
[391561323,1760655044115,-500.0,0.00030865,10]
[391561324,1760655044126,-500.0,0.00030865,10]
[391561325,1760655044135,-500.0,0.00030865,10]
[391561326,1760655044144,-500.0,0.00030865,10]
[391561327,1760655044154,-500.0,0.00030865,10]
[391561328,1760655044163,-211.98555455,0.00030865,10]
[391561329,1760655044172,-500.0,0.00030865,2]
[391561330,1760655044181,-500.0,0.00030865,2]
[391561331,1760655044191,-500.0,0.00030865,2]
[391561332,1760655044200,-500.0,0.00030865,2]
[391561333,1760655044209,-500.0,0.00030865,2]
[391561334,1760655044218,-500.0,0.00030865,2]
[391561335,1760655044227,-500.0,0.00030865,2]
[391561336,1760655044236,-500.0,0.00030865,2]
[391561337,1760655044244,-583.54465691,0.00030865,2]
[391561338,1760655044254,-500.0,0.00030865,14]
[391561339,1760655044269,-500.0,0.00030865,14]
[391561340,1760655044278,-500.0,0.00030865,14]
[391561341,1760655044287,-500.0,0.00030865,14]
[391561342,1760655044297,-500.0,0.00030865,14]
[391561343,1760655044308,-500.0,0.00030865,14]
[391561344,1760655044319,-500.0,0.00030865,14]
[391561345,1760655044330,-500.0,0.00030865,14]
[391561346,1760655044342,-500.0,0.00030865,14]
[391561347,1760655044353,-259.26466741,0.00030865,14]
[391561348,1760655044362,-500.0,0.00030865,2]
[391561349,1760655044372,-500.0,0.00030865,2]
[391561350,1760655044381,-500.0,0.00030865,2]
[391561351,1760655044391,-500.0,0.00030865,2]
[391561352,1760655044401,-500.0,0.00030865,2]
[391561353,1760655044411,-560.98679114,0.00030865,2]
[391561354,1760655044421,-500.0,0.00030865,7]
[391561355,1760655044431,-500.0,0.00030865,7]
[391561356,1760655044440,-428.68124737,0.00030865,7]
[391561357,1760655044450,-601.64,0.00030865,6]
[391561358,1760655044459,-601.64,0.00030865,6]
[391561359,1760655044468,-601.64,0.00030865,6]
[391561360,1760655044478,-601.64,0.00030865,6]
[391561361,1760655044487,-601.64,0.00030865,6]
[391561362,1760655044497,-601.64,0.00030865,6]
[391561363,1760655044506,-601.64,0.00030865,6]
[391561364,1760655044515,-601.64,0.00030865,6]
[391561365,1760655044526,-601.64,0.00030865,6]
[391561366,1760655044538,-601.64,0.00030865,6]
[391561367,1760655044547,-601.64,0.00030865,6]
[391561368,1760655044556,-601.64,0.00030865,6]
[391561369,1760655044566,-601.64,0.00030865,6]
[391561370,1760655044574,-601.64,0.00030865,6]
[391561371,1760655044584,-601.64,0.00030865,6]
[391561372,1760655044593,-601.64,0.00030865,6]
[391561373,1760655044602,-601.64,0.00030865,6]
[391561374,1760655044611,-601.64,0.00030865,6]
[391561375,1760655044620,-601.64,0.00030865,6]
[391561376,1760655044629,-601.64,0.00030865,6]
[391561377,1760655044639,-601.64,0.00030865,6]
[391561378,1760655044648,-601.64,0.00030865,6]
[391561379,1760655044656,-601.64,0.00030865,6]
[391561380,1760655044666,-601.78909306,0.00030865,6]
[391561381,1760655044675,-500.0,0.00030865,12]
[391561382,1760655044684,-198.21812912,0.00030865,12]
[391561383,1760655044694,-500.0,0.00030865,12]
[391561384,1760655044703,-500.0,0.00030865,12]
[391561385,1760655044712,-500.0,0.00030865,12]
[391561386,1760655044722,-500.0,0.00030865,12]
[391561387,1760655044730,-306.36017302,0.00030865,12]
[391561388,1760655044740,-1383.78237314,0.00030865,2]
[391561389,1760655044750,-500.0,0.00030865,16]
[391561390,1760655044760,-500.0,0.00030865,16]
[391561391,1760655044769,-500.0,0.00030865,16]
[391561392,1760655044778,-500.0,0.00030865,16]
[391561393,1760655044788,-500.0,0.00030865,16]
[391561394,1760655044798,-500.0,0.00030865,16]
[391561395,1760655044807,-500.0,0.00030865,16]
[391561396,1760655044816,-500.0,0.00030865,16]
[391561397,1760655044826,-1836.73,0.00030865,14]
[391561398,1760655044834,-500.0,0.00030865,16]
[391561399,1760655044843,-500.0,0.00030865,16]
[391561400,1760655044853,-1836.73,0.00030865,14]
[391561401,1760655044862,-500.0,0.00030865,16]
[391561402,1760655044871,-1836.73,0.00030865,14]
[391561403,1760655044881,-500.0,0.00030865,16]
[391561404,1760655044891,-1836.73,0.00030865,14]
[391561405,1760655044900,-500.0,0.00030865,16]
[391561406,1760655044909,-1836.73,0.00030865,14]
[391561407,1760655044918,-500.0,0.00030865,16]
[391561408,1760655044930,-1836.73,0.00030865,14]
[391561409,1760655044939,-500.0,0.00030865,16]
[391561410,1760655044948,-1836.73,0.00030865,14]
[391561411,1760655044958,-500.0,0.00030865,16]
[391561412,1760655044967,-1836.73,0.00030865,14]
[391561413,1760655044976,-402.33138201,0.00030865,16]
[391561414,1760655044985,-1836.73,0.00030865,14]
[391561415,1760655044995,-1836.73,0.00030865,14]
[391561416,1760655045004,-1836.73,0.00030865,14]
[391561417,1760655045013,-1836.73,0.00030865,14]
[391561418,1760655045022,-1836.73,0.00030865,14]
[391561419,1760655045031,-1836.73,0.00030865,14]
[391561420,1760655045040,-1836.73,0.00030865,14]
[391561421,1760655045050,-1836.73,0.00030865,14]
[391561422,1760655045059,-1836.73,0.00030865,14]
[391561423,1760655045068,-1836.73,0.00030865,14]
[391561424,1760655045077,-1836.73,0.00030865,14]
[391561425,1760655045088,-1836.73,0.00030865,14]
[391561426,1760655045097,-1836.73,0.00030865,14]
[391561427,1760655045106,-1836.73,0.00030865,14]
[391561428,1760655045115,-1836.73,0.00030865,14]
[391561429,1760655045124,-1836.80170167,0.00030865,14]
[391561430,1760655045134,-500.0,0.00030865,2]
[391561431,1760655045144,-500.0,0.00030865,2]
[391561432,1760655045153,-500.0,0.00030865,2]
[391561433,1760655045163,-500.0,0.00030865,2]
[391561434,1760655045172,-500.0,0.00030865,2]
[391561435,1760655045181,-438.70625592,0.00030865,2]
[391561437,1760655045191,-500.0,0.00030865,2]
[391561439,1760655045201,-500.0,0.00030865,2]
[391561441,1760655045211,-500.0,0.00030865,2]